[Event "Open Nuevo Centro. Jornada 1"]
[Site "Chess.com"]
[Date "2020.06.19"]
[Round "6"]
[White "Castellano L�pez, Javier"]
[Black "Gil Lopez, Alejandro"]
[Result "0-1"]
[WhiteElo "1757"]
[BlackElo "2042"]
[TimeControl "180+2"]
[EndTime "11:41:46 PDT"]
[Termination "Victoria de AglVal0313 por jaque mate"]

1. d4 {[%clk 0:03:01.9]} 1... e5 {[%clk 0:03:00.5]} 2. d5 {[%clk 0:03:00.4]}
2... d6 {[%clk 0:03:01.4]} 3. c4 {[%clk 0:03:01.1]} 3... f5 {[%clk 0:02:59.5]}
4. Nc3 {[%clk 0:03:01.3]} 4... Nf6 {[%clk 0:03:00.5]} 5. f3 {[%clk 0:03:01]}
5... Bd7 {[%clk 0:03:01.3]} 6. e4 {[%clk 0:03:02]} 6... f4 {[%clk 0:02:58]} 7.
Nge2 {[%clk 0:02:56.5]} 7... Be7 {[%clk 0:02:55.1]} 8. b4 {[%clk 0:02:51.3]}
8... c6 {[%clk 0:02:53.3]} 9. Bb2 {[%clk 0:02:45.3]} 9... cxd5 {[%clk
0:02:44.6]} 10. cxd5 {[%clk 0:02:45.7]} 10... O-O {[%clk 0:02:43.1]} 11. Nc1
{[%clk 0:02:45.1]} 11... a5 {[%clk 0:02:37.9]} 12. a3 {[%clk 0:02:42.4]} 12...
axb4 {[%clk 0:02:36.4]} 13. axb4 {[%clk 0:02:43.3]} 13... Rxa1 {[%clk
0:02:36.6]} 14. Bxa1 {[%clk 0:02:45.2]} 14... Qb6 {[%clk 0:02:32.5]} 15. Nd3
{[%clk 0:02:27.7]} 15... Rc8 {[%clk 0:02:20.4]} 16. Qd2 {[%clk 0:02:14.5]} 16...
Na6 {[%clk 0:01:58.7]} 17. Na2 {[%clk 0:02:03]} 17... Ne8 {[%clk 0:01:55]} 18.
Be2 {[%clk 0:02:00.8]} 18... Bh4+ {[%clk 0:01:55.1]} 19. g3 {[%clk 0:01:43.8]}
19... fxg3 {[%clk 0:01:54.9]} 20. hxg3 {[%clk 0:01:44.6]} 20... Bxg3+ {[%clk
0:01:56.6]} 21. Kf1 {[%clk 0:01:42]} 21... Bb5 {[%clk 0:01:38.7]} 22. Kg2 {[%clk
0:01:36.7]} 22... Bxd3 {[%clk 0:01:36.1]} 23. Bxd3 {[%clk 0:01:21.8]} 23... Bf4
{[%clk 0:01:33.2]} 24. Qe1 {[%clk 0:01:17]} 24... Qd8 {[%clk 0:01:30]} 25. Rh4
{[%clk 0:01:01.7]} 25... Qg5+ {[%clk 0:01:12.6]} 26. Rg4 {[%clk 0:01:00.9]}
26... Qh5 {[%clk 0:01:13.2]} 27. Qg1 {[%clk 0:00:41.9]} 27... Nf6 {[%clk
0:01:08.1]} 28. Rxf4 {[%clk 0:00:33]} 28... exf4 {[%clk 0:01:06.8]} 29. Kf2
{[%clk 0:00:24.2]} 29... Qg6 {[%clk 0:00:59.5]} 30. Qf1 {[%clk 0:00:20.2]} 30...
Qg3+ {[%clk 0:00:59.5]} 31. Ke2 {[%clk 0:00:20.4]} 31... Qh2+ {[%clk 0:00:57.8]}
32. Qf2 {[%clk 0:00:21.4]} 32... Qxf2+ {[%clk 0:00:58.4]} 33. Kxf2 {[%clk
0:00:23.3]} 33... Nd7 {[%clk 0:00:48.9]} 34. Bd4 {[%clk 0:00:19.4]} 34... Ne5
{[%clk 0:00:47.1]} 35. Bb1 {[%clk 0:00:12.4]} 35... h5 {[%clk 0:00:43.5]} 36.
Bc3 {[%clk 0:00:08]} 36... g5 {[%clk 0:00:40.2]} 37. Bd2 {[%clk 0:00:07]} 37...
Kf7 {[%clk 0:00:39.4]} 38. Ke2 {[%clk 0:00:05.4]} 38... h4 {[%clk 0:00:37.4]}
39. Kf2 {[%clk 0:00:06.3]} 39... h3 {[%clk 0:00:36.9]} 40. Bc3 {[%clk
0:00:03.9]} 40... Kf6 {[%clk 0:00:27.1]} 41. Bd2 {[%clk 0:00:05]} 41... Rh8
{[%clk 0:00:26.6]} 42. Kg1 {[%clk 0:00:03.4]} 42... Nxf3+ {[%clk 0:00:27]} 43.
Kh1 {[%clk 0:00:03.8]} 43... Nxd2 {[%clk 0:00:28.1]} 44. Bd3 {[%clk 0:00:04.9]}
44... Ke5 {[%clk 0:00:26.9]} 45. b5 {[%clk 0:00:06.3]} 45... Nc7 {[%clk
0:00:26.6]} 46. Nb4 {[%clk 0:00:07.7]} 46... f3 {[%clk 0:00:24.3]} 47. b6 {[%clk
0:00:08.7]} 47... Ne8 {[%clk 0:00:22.5]} 48. Nc6+ {[%clk 0:00:10.6]} 48... Kf4
{[%clk 0:00:22]} 49. Ne7 {[%clk 0:00:10.3]} 49... Kg3 {[%clk 0:00:20.5]} 50.
Nf5+ {[%clk 0:00:10.8]} 50... Kf4 {[%clk 0:00:20.5]} 51. Ne7 {[%clk 0:00:11.1]}
51... Ke3 {[%clk 0:00:21.6]} 52. Bb5 {[%clk 0:00:08.6]} 52... Nxe4 {[%clk
0:00:21.4]} 53. Nf5+ {[%clk 0:00:07.5]} 53... Kf4 {[%clk 0:00:20.5]} 54. Nd4
{[%clk 0:00:07.4]} 54... Ng7 {[%clk 0:00:18.2]} 55. Nc6 {[%clk 0:00:07.3]} 55...
h2 {[%clk 0:00:16.5]} 56. Ne7 {[%clk 0:00:06]} 56... Ng3# {[%clk 0:00:17.3]} 0

[Event "Open Nuevo Centro. Jornada 1"]
[Site "Chess.com"]
[Date "2020.06.19"]
[Round "6"]
[White "Hassomal Daswani, Birjkumar"]
[Black "Casado Andreu, David"]
[Result "1-0"]
[WhiteElo "1843"]
[BlackElo "1568"]
[TimeControl "180+2"]
[EndTime "11:42:08 PDT"]
[Termination "Victoria de daz000007 por abandono"]

1. e4 {[%clk 0:03:01.1]} 1... e5 {[%clk 0:02:59.5]} 2. Nf3 {[%clk 0:03:01.3]}
2... Nc6 {[%clk 0:03:00.8]} 3. Bb5 {[%clk 0:03:01.4]} 3... a6 {[%clk 0:03:01.1]}
4. Ba4 {[%clk 0:03:01.4]} 4... Nf6 {[%clk 0:03:00.8]} 5. d3 {[%clk 0:03:02.1]}
5... b5 {[%clk 0:03:01.5]} 6. Bb3 {[%clk 0:02:59.2]} 6... Bc5 {[%clk 0:03:01.1]}
7. Nbd2 {[%clk 0:02:57.5]} 7... h6 {[%clk 0:03:01]} 8. Nf1 {[%clk 0:02:56.3]}
8... d6 {[%clk 0:03:01.4]} 9. c3 {[%clk 0:02:55.5]} 9... Bb6 {[%clk 0:03:01.6]}
10. Be3 {[%clk 0:02:54.3]} 10... Ne7 {[%clk 0:03:01.1]} 11. Bxb6 {[%clk
0:02:53.6]} 11... cxb6 {[%clk 0:03:03]} 12. Ne3 {[%clk 0:02:54.1]} 12... Be6
{[%clk 0:02:58.7]} 13. Bxe6 {[%clk 0:02:43.2]} 13... fxe6 {[%clk 0:03:00.5]} 14.
O-O {[%clk 0:02:42.1]} 14... O-O {[%clk 0:03:00.3]} 15. Qb3 {[%clk 0:02:42.1]}
15... Qd7 {[%clk 0:03:00.7]} 16. Rad1 {[%clk 0:02:42.1]} 16... Ng6 {[%clk
0:03:00.7]} 17. Rfe1 {[%clk 0:02:36.7]} 17... Nh5 {[%clk 0:02:51.4]} 18. Nf5
{[%clk 0:02:33.1]} 18... Kh7 {[%clk 0:02:40.2]} 19. Ng3 {[%clk 0:02:32.9]} 19...
Nhf4 {[%clk 0:02:39.1]} 20. d4 {[%clk 0:02:30.6]} 20... Qf7 {[%clk 0:02:34.9]}
21. dxe5 {[%clk 0:02:16.6]} 21... dxe5 {[%clk 0:02:35.8]} 22. Re3 {[%clk
0:02:02.7]} 22... Rad8 {[%clk 0:02:31.9]} 23. h3 {[%clk 0:01:55.9]} 23... Qf6
{[%clk 0:02:12.6]} 24. Nf1 {[%clk 0:01:46.8]} 24... Nh4 {[%clk 0:01:18.7]} 25.
Nxh4 {[%clk 0:01:39.3]} 25... Qxh4 {[%clk 0:01:18.2]} 26. Rxd8 {[%clk 0:01:28]}
26... Rxd8 {[%clk 0:01:16.4]} 27. Ng3 {[%clk 0:01:22.6]} 27... Qf6 {[%clk
0:01:07.2]} 28. Qc2 {[%clk 0:01:20]} 28... h5 {[%clk 0:00:58.1]} 29. Kh2 {[%clk
0:01:17.5]} 29... h4 {[%clk 0:00:58.4]} 30. Nf1 {[%clk 0:01:16]} 30... Qg5
{[%clk 0:00:58.8]} 31. g3 {[%clk 0:01:13.1]} 31... Qf6 {[%clk 0:00:50.2]} 32.
gxf4 {[%clk 0:01:08.3]} 32... Qxf4+ {[%clk 0:00:51.1]} 33. Kg1 {[%clk
0:01:07.4]} 33... Qg5+ {[%clk 0:00:43.1]} 34. Kh1 {[%clk 0:01:05.1]} 34... Rf8
{[%clk 0:00:40.5]} 35. Qe2 {[%clk 0:01:03.8]} 35... Rf6 {[%clk 0:00:38.5]} 36.
Nh2 {[%clk 0:01:00.7]} 36... Rg6 {[%clk 0:00:37.1]} 37. Ng4 {[%clk 0:01:00.2]}
37... Qe7 {[%clk 0:00:34.5]} 38. Rf3 {[%clk 0:00:59.9]} 38... b4 {[%clk
0:00:29.5]} 39. Nxe5 {[%clk 0:00:57.3]} 39... Rg5 {[%clk 0:00:16.2]} 40. Ng4
{[%clk 0:00:57.2]} 40... bxc3 {[%clk 0:00:15.7]} 41. bxc3 {[%clk 0:00:57.4]}
41... Qa3 {[%clk 0:00:15.3]} 42. e5 {[%clk 0:00:51.6]} 42... Qc1+ {[%clk
0:00:16.3]} 43. Kh2 {[%clk 0:00:51]} 43... Rf5 {[%clk 0:00:17.3]} 44. Qe4 {[%clk
0:00:47.5]} 44... g6 {[%clk 0:00:16.9]} 45. Nf6+ {[%clk 0:00:46.9]} 45... Kg7
{[%clk 0:00:17.3]} 46. Rxf5 {[%clk 0:00:46.1]} 46... gxf5 {[%clk 0:00:14.8]} 47.
Qxh4 {[%clk 0:00:44.9]} 47... Qh6 {[%clk 0:00:10.7]} 48. Qxh6+ {[%clk
0:00:44.6]} 48... Kxh6 {[%clk 0:00:11.5]} 49. Kg3 {[%clk 0:00:43.4]} 49... Kg5
{[%clk 0:00:12.7]} 50. f4+ {[%clk 0:00:42.5]} 50... Kg6 {[%clk 0:00:12.7]} 51.
Ne8 {[%clk 0:00:41.1]} 51... Kf7 {[%clk 0:00:13.5]} 52. Nc7 {[%clk 0:00:41.6]}
52... a5 {[%clk 0:00:13.8]} 53. a4 {[%clk 0:00:41.1]} 53... Ke7 {[%clk
0:00:14.9]} 54. Kh4 {[%clk 0:00:40.7]} 54... Kf7 {[%clk 0:00:15.3]} 55. Kg5
{[%clk 0:00:40.7]} 55... Ke7 {[%clk 0:00:16.3]} 56. h4 {[%clk 0:00:40.7]} 56...
Kf7 {[%clk 0:00:18.2]} 57. h5 {[%clk 0:00:41.4]} 57... Ke7 {[%clk 0:00:19.4]}
58. Kg6 {[%clk 0:00:41.6]} 58... Kd7 {[%clk 0:00:19.1]} 59. Nb5 {[%clk
0:00:41.9]} 59... Ke7 {[%clk 0:00:18.9]} 60. h6 {[%clk 0:00:42.4]} 60... Kf8
{[%clk 0:00:20]} 61. h7 {[%clk 0:00:41.7]} 1

[Event "Open Nuevo Centro. Jornada 1"]
[Site "Chess.com"]
[Date "2020.06.19"]
[Round "6"]
[White "Montesinos Diaz, Luis"]
[Black "Aymerich Rosell, Pablo"]
[Result "1-0"]
[WhiteElo "2033"]
[BlackElo "2001"]
[TimeControl "180+2"]
[EndTime "11:42:24 PDT"]
[Termination "Victoria de Gwiso_06 por abandono"]

1. d4 {[%clk 0:03:01.9]} 1... Nf6 {[%clk 0:02:59.5]} 2. Nf3 {[%clk 0:02:54.5]}
2... b6 {[%clk 0:02:45.9]} 3. e3 {[%clk 0:02:44.9]} 3... Bb7 {[%clk 0:02:46.1]}
4. Bd3 {[%clk 0:02:42.8]} 4... e6 {[%clk 0:02:46.8]} 5. Nbd2 {[%clk 0:02:42.8]}
5... d5 {[%clk 0:02:47.2]} 6. b3 {[%clk 0:02:43]} 6... Be7 {[%clk 0:02:45.6]} 7.
Bb2 {[%clk 0:02:43.9]} 7... O-O {[%clk 0:02:46.8]} 8. O-O {[%clk 0:02:41.6]}
8... c5 {[%clk 0:02:47.8]} 9. c4 {[%clk 0:02:41.5]} 9... Nbd7 {[%clk 0:02:40.8]}
10. Ne5 {[%clk 0:02:41.4]} 10... Ne4 {[%clk 0:02:33.2]} 11. Nxd7 {[%clk
0:02:29.7]} 11... Qxd7 {[%clk 0:02:32.5]} 12. f3 {[%clk 0:02:30]} 12... Nxd2
{[%clk 0:02:30.9]} 13. Qxd2 {[%clk 0:02:28.4]} 13... Bf6 {[%clk 0:02:29.2]} 14.
Rae1 {[%clk 0:02:19.3]} 14... dxc4 {[%clk 0:02:20.3]} 15. bxc4 {[%clk
0:02:14.5]} 15... cxd4 {[%clk 0:02:17.2]} 16. exd4 {[%clk 0:02:13.1]} 16...
Bxd4+ {[%clk 0:02:16.8]} 17. Bxd4 {[%clk 0:02:13.6]} 17... Qxd4+ {[%clk
0:02:17.1]} 18. Kh1 {[%clk 0:02:13.7]} 18... Rad8 {[%clk 0:02:10.4]} 19. Rd1
{[%clk 0:02:14.1]} 19... Qf6 {[%clk 0:02:01.5]} 20. Qf2 {[%clk 0:02:04.7]} 20...
g6 {[%clk 0:01:49.5]} 21. h4 {[%clk 0:01:57.7]} 21... h5 {[%clk 0:01:47.7]} 22.
Qg3 {[%clk 0:01:55.2]} 22... Rd4 {[%clk 0:01:43.8]} 23. Be4 {[%clk 0:01:40.6]}
23... Bxe4 {[%clk 0:01:24.2]} 24. fxe4 {[%clk 0:01:40.2]} 24... Rxd1 {[%clk
0:01:16.4]} 25. Rxd1 {[%clk 0:01:39]} 25... Rd8 {[%clk 0:01:11.7]} 26. Rxd8+
{[%clk 0:01:38.4]} 26... Qxd8 {[%clk 0:01:12.5]} 27. Qf4 {[%clk 0:01:35.5]}
27... Kg7 {[%clk 0:01:00.1]} 28. Qe5+ {[%clk 0:01:35.6]} 28... Qf6 {[%clk
0:01:01.1]} 29. Qg3 {[%clk 0:01:11.9]} 29... Qf1+ {[%clk 0:00:53.5]} 30. Kh2
{[%clk 0:01:11.7]} 30... Qxc4 {[%clk 0:00:53.5]} 31. Qe5+ {[%clk 0:01:12.3]}
31... Kh7 {[%clk 0:00:50.2]} 32. Qf6 {[%clk 0:01:10.3]} 32... Qc7+ {[%clk
0:00:42.3]} 33. e5 {[%clk 0:01:08.6]} 33... Kg8 {[%clk 0:00:41]} 34. Qf4 {[%clk
0:01:06.4]} 34... a5 {[%clk 0:00:39.5]} 35. a4 {[%clk 0:01:05.1]} 35... Qc5
{[%clk 0:00:31.2]} 36. Qf6 {[%clk 0:01:02.5]} 36... Qd4 {[%clk 0:00:28.3]} 37.
g3 {[%clk 0:00:50.2]} 37... Qxa4 {[%clk 0:00:22.6]} 38. Qd8+ {[%clk 0:00:49.2]}
38... Kh7 {[%clk 0:00:23.5]} 39. Qxb6 {[%clk 0:00:49.5]} 39... Qc2+ {[%clk
0:00:19.2]} 40. Kg1 {[%clk 0:00:28.9]} 40... Qd1+ {[%clk 0:00:19.6]} 41. Kh2
{[%clk 0:00:27]} 41... Qe2+ {[%clk 0:00:19.5]} 42. Kg1 {[%clk 0:00:26.5]} 42...
Qxe5 {[%clk 0:00:19.8]} 43. Qb7 {[%clk 0:00:26.2]} 43... Qxg3+ {[%clk
0:00:19.5]} 44. Kf1 {[%clk 0:00:27.6]} 44... Qf4+ {[%clk 0:00:19.6]} 45. Kg1
{[%clk 0:00:27.8]} 45... a4 {[%clk 0:00:20.5]} 46. Qb2 {[%clk 0:00:26.9]} 46...
Qg4+ {[%clk 0:00:19.2]} 47. Kf1 {[%clk 0:00:26.5]} 47... Qxh4 {[%clk 0:00:18.6]}
48. Qb7 {[%clk 0:00:26.7]} 48... Qf4+ {[%clk 0:00:18.3]} 49. Ke1 {[%clk
0:00:27.1]} 49... h4 {[%clk 0:00:17.9]} 50. Qh1 {[%clk 0:00:26.8]} 50... a3
{[%clk 0:00:16.9]} 51. Qa8 {[%clk 0:00:26.1]} 51... Qe3+ {[%clk 0:00:13.9]} 52.
Kf1 {[%clk 0:00:26.1]} 52... h3 {[%clk 0:00:14.2]} 53. Qb7 {[%clk 0:00:18.8]}
53... Qf3+ {[%clk 0:00:14.1]} 54. Qxf3 {[%clk 0:00:18.8]} 54... a2 {[%clk
0:00:13.6]} 55. Qxh3+ {[%clk 0:00:19]} 55... Kg7 {[%clk 0:00:14.4]} 56. Qa3
{[%clk 0:00:19.9]} 56... e5 {[%clk 0:00:13]} 57. Qxa2 {[%clk 0:00:20.7]} 57...
f6 {[%clk 0:00:13.9]} 58. Kf2 {[%clk 0:00:21.7]} 58... g5 {[%clk 0:00:14.9]} 59.
Qa7+ {[%clk 0:00:22.4]} 59... Kg6 {[%clk 0:00:15.9]} 60. Qe3 {[%clk 0:00:21.6]}
60... Kf5 {[%clk 0:00:15.1]} 61. Kf3 {[%clk 0:00:21.7]} 61... g4+ {[%clk
0:00:11.5]} 62. Kg3 {[%clk 0:00:21.6]} 62... Ke6 {[%clk 0:00:10.1]} 63. Kxg4
{[%clk 0:00:22]} 63... f5+ {[%clk 0:00:11.3]} 64. Kg5 {[%clk 0:00:23]} 64... f4
{[%clk 0:00:11.5]} 65. Qe4 {[%clk 0:00:23.3]} 65... f3 {[%clk 0:00:12.3]} 66.
Qxf3 {[%clk 0:00:23.6]} 66... Kd6 {[%clk 0:00:10.9]} 67. Kf6 {[%clk 0:00:24.3]}
67... e4 {[%clk 0:00:12]} 68. Qxe4 {[%clk 0:00:24.8]} 68... Kc5 {[%clk
0:00:13.4]} 69. Ke5 {[%clk 0:00:25]} 69... Kb6 {[%clk 0:00:14]} 70. Qd5 {[%clk
0:00:25.6]} 1

[Event "Open Nuevo Centro. Jornada 1"]
[Site "Chess.com"]
[Date "2020.06.19"]
[Round "6"]
[White "Rodriguez, Mathias"]
[Black "Bendayan Claros, Aaron"]
[Result "0-1"]
[WhiteElo "1986"]
[BlackElo "1701"]
[TimeControl "180+2"]
[EndTime "11:42:33 PDT"]
[Termination "Victoria de Cuajada_Zero por jaque mate"]

1. e4 {[%clk 0:03:01.9]} 1... c6 {[%clk 0:03:00.8]} 2. d4 {[%clk 0:03:01.3]}
2... d5 {[%clk 0:03:02.4]} 3. e5 {[%clk 0:03:02.6]} 3... Bf5 {[%clk 0:03:03.1]}
4. Be3 {[%clk 0:03:03.8]} 4... e6 {[%clk 0:03:03.5]} 5. Nd2 {[%clk 0:03:04.8]}
5... Nd7 {[%clk 0:03:02.7]} 6. Nb3 {[%clk 0:03:05.6]} 6... Ne7 {[%clk
0:03:03.1]} 7. f4 {[%clk 0:03:06.1]} 7... h5 {[%clk 0:03:03.3]} 8. Be2 {[%clk
0:03:06.2]} 8... g6 {[%clk 0:03:00]} 9. Nf3 {[%clk 0:03:05.5]} 9... Bg4 {[%clk
0:03:00.6]} 10. O-O {[%clk 0:03:04.1]} 10... Nf5 {[%clk 0:03:01.2]} 11. Bf2
{[%clk 0:03:04.1]} 11... Be7 {[%clk 0:03:01.7]} 12. h3 {[%clk 0:02:55.8]} 12...
Bxf3 {[%clk 0:03:02.2]} 13. Bxf3 {[%clk 0:02:57.7]} 13... h4 {[%clk 0:02:59.7]}
14. c3 {[%clk 0:02:41.8]} 14... Rc8 {[%clk 0:02:59]} 15. Be2 {[%clk 0:02:28.7]}
15... a6 {[%clk 0:02:56.7]} 16. Bd3 {[%clk 0:02:25.5]} 16... c5 {[%clk
0:02:54.9]} 17. Bxf5 {[%clk 0:02:23]} 17... gxf5 {[%clk 0:02:56.8]} 18. Qf3
{[%clk 0:02:01.6]} 18... a5 {[%clk 0:02:42.9]} 19. a4 {[%clk 0:01:59.2]} 19...
Qb6 {[%clk 0:02:42.7]} 20. Qd1 {[%clk 0:01:49.4]} 20... Rg8 {[%clk 0:02:38.5]}
21. Kh1 {[%clk 0:01:42.4]} 21... c4 {[%clk 0:02:32.3]} 22. Nd2 {[%clk
0:01:36.5]} 22... Qxb2 {[%clk 0:02:32.9]} 23. Rb1 {[%clk 0:01:33.6]} 23... Qxc3
{[%clk 0:02:33.2]} 24. Rxb7 {[%clk 0:01:33.7]} 24... Qd3 {[%clk 0:02:02.4]} 25.
Nf3 {[%clk 0:01:19.1]} 25... Qe4 {[%clk 0:01:50.1]} 26. Bxh4 {[%clk 0:00:36.9]}
26... Bxh4 {[%clk 0:01:49]} 27. Nxh4 {[%clk 0:00:38.8]} 27... c3 {[%clk
0:01:48.6]} 28. Qf3 {[%clk 0:00:27.3]} 28... c2 {[%clk 0:01:42.7]} 29. Rc1
{[%clk 0:00:23.2]} 29... Qxd4 {[%clk 0:01:33.1]} 30. Qb3 {[%clk 0:00:22.8]}
30... Qxf4 {[%clk 0:01:23.1]} 31. Rxc2 {[%clk 0:00:19.3]} 31... Rxc2 {[%clk
0:00:21.3]} 32. Qxc2 {[%clk 0:00:21.2]} 32... Qxh4 {[%clk 0:00:21.8]} 33. Qc8+
{[%clk 0:00:20.1]} 33... Qd8 {[%clk 0:00:22.3]} 34. Qc6 {[%clk 0:00:16]} 34...
f4 {[%clk 0:00:16.2]} 35. Qd6 {[%clk 0:00:15.9]} 35... f3 {[%clk 0:00:14.7]} 36.
gxf3 {[%clk 0:00:16.3]} 36... Rg3 {[%clk 0:00:13.1]} 37. Rb3 {[%clk 0:00:15.8]}
37... Rxh3+ {[%clk 0:00:11.8]} 38. Kg2 {[%clk 0:00:16.6]} 38... Rh4 {[%clk
0:00:11.4]} 39. Kf2 {[%clk 0:00:12.3]} 39... Rh2+ {[%clk 0:00:10.5]} 40. Ke3
{[%clk 0:00:12.2]} 40... Qg5+ {[%clk 0:00:10.6]} 41. Kd4 {[%clk 0:00:12.6]}
41... Rd2+ {[%clk 0:00:08.8]} 42. Rd3 {[%clk 0:00:07.7]} 42... Qf4+ {[%clk
0:00:07.1]} 43. Kc3 {[%clk 0:00:07.6]} 43... Rxd3+ {[%clk 0:00:04.9]} 44. Kxd3
{[%clk 0:00:08.2]} 44... Nxe5+ {[%clk 0:00:06.1]} 45. Kc2 {[%clk 0:00:08.1]}
45... Qd4 {[%clk 0:00:04.9]} 46. Qb8+ {[%clk 0:00:04.7]} 46... Ke7 {[%clk
0:00:05.7]} 47. Qc7+ {[%clk 0:00:05.1]} 47... Nd7 {[%clk 0:00:06.2]} 48. Qxa5
{[%clk 0:00:04.9]} 48... Qc4+ {[%clk 0:00:05.8]} 49. Kb2 {[%clk 0:00:04]} 49...
d4 {[%clk 0:00:06.5]} 50. Qg5+ {[%clk 0:00:03.9]} 50... f6 {[%clk 0:00:06.6]}
51. Qg7+ {[%clk 0:00:04.6]} 51... Kd6 {[%clk 0:00:07.6]} 52. Qg3+ {[%clk
0:00:06.2]} 52... e5 {[%clk 0:00:08.5]} 53. Qe1 {[%clk 0:00:06.9]} 53... Nc5
{[%clk 0:00:07.7]} 54. a5 {[%clk 0:00:07.1]} 54... Nd3+ {[%clk 0:00:08.5]} 55.
Ka3 {[%clk 0:00:07]} 55... Nxe1 {[%clk 0:00:10.4]} 56. a6 {[%clk 0:00:07.4]}
56... Qxa6+ {[%clk 0:00:11.3]} 57. Kb2 {[%clk 0:00:07.5]} 57... Qc6 {[%clk
0:00:12.1]} 58. f4 {[%clk 0:00:07]} 58... exf4 {[%clk 0:00:12.4]} 59. Kb3 {[%clk
0:00:08.9]} 59... f3 {[%clk 0:00:13]} 60. Ka2 {[%clk 0:00:10.4]} 60... Qb6
{[%clk 0:00:12.2]} 61. Ka1 {[%clk 0:00:12.3]} 61... f2 {[%clk 0:00:12.8]} 62.
Ka2 {[%clk 0:00:13]} 62... f1=Q {[%clk 0:00:12.6]} 63. Ka1 {[%clk 0:00:13.2]}
63... Qfa6# {[%clk 0:00:14.3]} 0

[Event "Open Nuevo Centro. Jornada 1"]
[Site "Chess.com"]
[Date "2020.06.19"]
[Round "7"]
[White "Clement G�mez, Jos� Antonio"]
[Black "Campos Gambuti, Luis Mar�a"]
[Result "1/2-1/2"]
[WhiteElo "2487"]
[BlackElo "2339"]
[TimeControl "180+2"]
[EndTime "11:43:52 PDT"]
[Termination "Partida en tablas por mutuo acuerdo"]

1. c4 {[%clk 0:03:01.9]} 1... b6 {[%clk 0:02:58.6]} 2. Nf3 {[%clk 0:03:02.4]}
2... Bb7 {[%clk 0:02:58.3]} 3. g3 {[%clk 0:03:03.8]} 3... Bxf3 {[%clk
0:02:57.8]} 4. exf3 {[%clk 0:03:05.7]} 4... e6 {[%clk 0:02:57.8]} 5. Bg2 {[%clk
0:03:02.5]} 5... c6 {[%clk 0:02:58.7]} 6. O-O {[%clk 0:03:02.6]} 6... d5 {[%clk
0:02:59.9]} 7. d3 {[%clk 0:03:02.7]} 7... g6 {[%clk 0:02:53.6]} 8. f4 {[%clk
0:03:02.3]} 8... Bg7 {[%clk 0:02:54.5]} 9. Nc3 {[%clk 0:03:03.6]} 9... Ne7
{[%clk 0:02:54.9]} 10. Re1 {[%clk 0:02:59.4]} 10... O-O {[%clk 0:02:54.8]} 11.
Qe2 {[%clk 0:02:55.4]} 1/2-1

[Event "Open Nuevo Centro. Jornada 1"]
[Site "Chess.com"]
[Date "2020.06.19"]
[Round "7"]
[White "Cebri�n Granado, Guille"]
[Black "Morata Briones, Carlos"]
[Result "0-1"]
[WhiteElo "404"]
[BlackElo "691"]
[TimeControl "180+2"]
[EndTime "11:45:40 PDT"]
[Termination "Victoria de CarlosMorata por jaque mate"]

1. d4 {[%clk 0:03:00.2]} 1... d5 {[%clk 0:03:00.4]} 2. e4 {[%clk 0:03:00.2]}
2... dxe4 {[%clk 0:02:59.6]} 3. Nf3 {[%clk 0:03:01.8]} 3... exf3 {[%clk
0:03:00]} 4. gxf3 {[%clk 0:03:02.7]} 4... e6 {[%clk 0:02:59.7]} 5. Qe2 {[%clk
0:03:03.7]} 5... Qxd4 {[%clk 0:02:56.9]} 6. Bh3 {[%clk 0:03:05.1]} 6... Nc6
{[%clk 0:02:53.8]} 7. Bd2 {[%clk 0:03:06.6]} 7... e5 {[%clk 0:02:54.1]} 8. c3
{[%clk 0:03:05]} 8... Qd5 {[%clk 0:02:49.9]} 9. Na3 {[%clk 0:02:59]} 9... Bxh3
{[%clk 0:02:49.6]} 10. c4 {[%clk 0:02:56]} 10... Qd4 {[%clk 0:02:49.3]} 11. Nc2
{[%clk 0:02:55.6]} 11... Qxb2 {[%clk 0:02:49.4]} 12. Rb1 {[%clk 0:02:55.2]}
12... Qxb1+ {[%clk 0:02:44.3]} 13. Bc1 {[%clk 0:02:55.5]} 13... Qxc1+ {[%clk
0:02:43.4]} 14. Qd1 {[%clk 0:02:56.9]} 14... Qxd1+ {[%clk 0:02:40.5]} 15. Kxd1
{[%clk 0:02:56.9]} 15... Bg2 {[%clk 0:02:37]} 16. Re1 {[%clk 0:02:58.3]} 16...
Bxf3+ {[%clk 0:02:36.9]} 17. Kc1 {[%clk 0:02:57.4]} 17... O-O-O {[%clk
0:02:30.5]} 18. Ne3 {[%clk 0:02:58.9]} 18... Nb4 {[%clk 0:02:28.5]} 19. a3
{[%clk 0:02:58.1]} 19... Nd3+ {[%clk 0:02:19.3]} 20. Kd2 {[%clk 0:02:55.7]}
20... Nxe1+ {[%clk 0:02:17.7]} 21. Kxe1 {[%clk 0:02:48.7]} 21... Bxa3 {[%clk
0:02:17]} 22. Nd1 {[%clk 0:02:48.3]} 22... Rxd1# {[%clk 0:02:14.4]} 0

[Event "Open Nuevo Centro. Jornada 1"]
[Site "Chess.com"]
[Date "2020.06.19"]
[Round "7"]
[White "Aguado, Pablo Luis"]
[Black "Hern�ndez Tom�s, Efr�n"]
[Result "1-0"]
[WhiteElo "1438"]
[BlackElo "976"]
[TimeControl "180+2"]
[EndTime "11:46:09 PDT"]
[Termination "Victoria de PLAD_2006 por jaque mate"]

1. d4 {[%clk 0:03:01.9]} 1... e6 {[%clk 0:03:00.3]} 2. c4 {[%clk 0:03:02.7]}
2... Nc6 {[%clk 0:02:57.8]} 3. Nf3 {[%clk 0:03:02.6]} 3... Nf6 {[%clk
0:02:57.2]} 4. Nc3 {[%clk 0:03:02.4]} 4... d5 {[%clk 0:02:57]} 5. e3 {[%clk
0:03:00.4]} 5... Bb4 {[%clk 0:02:54.3]} 6. Bd2 {[%clk 0:02:54.8]} 6... Bxc3
{[%clk 0:02:54.1]} 7. Bxc3 {[%clk 0:02:55.3]} 7... O-O {[%clk 0:02:55.4]} 8. Bd3
{[%clk 0:02:55]} 8... b6 {[%clk 0:02:49.3]} 9. O-O {[%clk 0:02:52]} 9... Bb7
{[%clk 0:02:49]} 10. b3 {[%clk 0:02:46.7]} 10... Qd6 {[%clk 0:02:38.4]} 11. Ne5
{[%clk 0:02:44.5]} 11... Nxe5 {[%clk 0:02:36.5]} 12. dxe5 {[%clk 0:02:45.1]}
12... Qc6 {[%clk 0:02:28.5]} 13. exf6 {[%clk 0:02:31.5]} 13... dxc4 {[%clk
0:02:27.7]} 14. Qg4 {[%clk 0:02:31.4]} 14... g6 {[%clk 0:02:16.8]} 15. Bxc4
{[%clk 0:02:30.5]} 15... h5 {[%clk 0:02:15.5]} 16. Qg5 {[%clk 0:02:29.9]} 16...
Rfd8 {[%clk 0:02:12.7]} 17. f3 {[%clk 0:02:30.9]} 17... a6 {[%clk 0:02:01.3]}
18. Qh6 {[%clk 0:02:31.4]} 18... b5 {[%clk 0:01:37.8]} 19. Qg7# {[%clk
0:02:28.3]} 1